bitfinex/quotes_ETHUSD_20250814
["timestamp","ask_amount","ask_price","bid_price","bid_amount"]
[1755203464839,41.05172286,4545.3,4545.2,0.001]
[1755203465342,40.14965945,4545.3,4545.2,0.001]
[1755203466069,40.14852377,4545.3,4545.2,0.001]
[1755203466272,40.80963677,4545.3,4545.2,0.001]
[1755203466470,44.27763677,4545.3,4545.2,1.231]
[1755203467375,43.61652377,4545.3,4545.2,1.231]
[1755203467824,43.61652377,4545.3,4545.2,2.461]
[1755203467983,43.41359891,4545.3,4545.2,2.461]
[1755203468390,42.7431,4545.3,4545.2,2.461]
[1755203468807,6.464,4545.3,4545.2,2.461]
[1755203469182,6.464,4545.3,4545.2,3.691]
[1755203469379,3.464,4545.3,4545.2,3.691]
[1755203470116,3.9101,4545.3,4545.2,3.691]
[1755203470306,4.4601,4545.3,4545.2,3.691]
[1755203470623,4.014,4545.3,4545.2,4.921]
[1755203470986,4.1244,4545.3,4545.2,4.921]
[1755203471636,7.1244,4545.3,4545.2,4.921]
[1755203472027,7.1244,4545.3,4545.2,6.151]
[1755203472561,37.5705,4545.3,4545.2,6.151]
[1755203473397,37.5705,4545.3,4545.2,7.381]
[1755203474736,37.1244,4545.3,4545.2,8.611]
[1755203475637,6.5704,4545.3,4545.2,8.611]
[1755203476051,6.5704,4545.3,4545.2,9.841]
[1755203477559,6.5704,4545.3,4545.2,11.071]
[1755203478431,7.1204,4545.3,4545.2,11.071]
[1755203478943,7.1204,4545.3,4545.2,12.301]
[1755203480328,7.1204,4545.3,4545.2,13.531]
[1755203480962,6.5704,4545.3,4545.2,13.531]
[1755203481632,6.5704,4545.3,4545.2,14.761]
[1755203482942,6.5704,4545.3,4545.2,15.991]
[1755203483863,7.1204,4545.3,4545.2,15.991]
[1755203484233,7.1204,4545.3,4545.2,17.221]
[1755203485156,6.5704,4545.3,4545.2,17.221]
[1755203485773,6.5704,4545.3,4545.2,18.451]
[1755203486167,7.1204,4545.3,4545.2,18.451]
[1755203487160,7.59030936,4545.3,4545.2,19.681]
[1755203488268,7.79453945,4545.3,4545.2,19.681]
[1755203488465,37.99878129,4545.3,4545.2,20.911]
[1755203489052,38.45628129,4545.3,4545.2,20.911]
[1755203489258,38.57876232,4545.3,4545.2,19.72233152]
[1755203489461,38.58019122,4545.3,4545.2,19.72233152]
[1755203489895,38.58019122,4545.3,4545.2,20.95233152]
[1755203491363,38.58019122,4545.3,4545.2,22.18233152]
[1755203492365,38.58019122,4545.3,4545.2,20.39930283]
[1755203492697,38.58019122,4545.3,4545.2,21.62930283]
[1755203493052,39.24126422,4545.3,4545.2,21.62930283]
[1755203493974,39.24126422,4545.3,4545.2,22.85930283]
[1755203495055,39.24179651,4545.3,4545.2,22.85930283]
[1755203495489,16.28179651,4545.3,4545.2,24.08930283]
[1755203495708,46.28179651,4545.3,4545.2,24.08930283]
[1755203497189,49.28100927,4545.3,4545.2,23.94621148]
[1755203497393,47.71948896,4545.3,4545.2,22.79867544]
[1755203497601,17.71948896,4545.3,4545.2,22.58402138]
[1755203497954,47.71948896,4545.3,4545.2,11.93312708]
[1755203498154,47.71948896,4545.3,4545.2,8.31662409]
[1755203498689,47.71948896,4545.3,4545.2,9.54662409]
[1755203500060,49.68079496,4545.3,4545.2,9.54662409]
[1755203500281,49.68079496,4545.3,4545.2,10.77662409]
[1755203500756,45.76329496,4545.3,4545.2,10.77662409]
[1755203500951,46.70398896,4545.3,4545.2,10.77662409]
[1755203501365,43.70398896,4545.3,4545.2,10.77662409]
[1755203501697,35.23058896,4545.3,4545.2,12.00662409]
[1755203502004,35.85605962,4545.3,4545.2,12.00662409]
[1755203502296,34.67991596,4545.3,4545.2,12.44852409]
[1755203502512,1.00282351,4545.3,4545.2,12.44852409]
[1755203502811,3.5624,4545.3,4545.2,15.88298813]
[1755203503095,3.76661391,4545.3,4545.2,13.67852409]
[1755203503594,3.5624,4545.3,4545.2,13.67852409]
[1755203503782,6.76661663,4545.3,4545.2,13.67852409]
[1755203503969,7.23795489,4545.3,4545.2,13.67852409]
[1755203504498,7.23795489,4545.3,4545.2,14.90852409]
[1755203505586,37.99173494,4545.3,4545.2,14.46662409]
[1755203505788,37.99173494,4545.3,4545.2,15.69662409]
[1755203506103,37.99173494,4545.3,4545.2,16.13852409]
[1755203506605,37.99126359,4545.3,4545.2,16.13852409]
[1755203507110,37.99126359,4545.3,4545.2,16.92662409]
[1755203507605,7.99126359,4545.3,4545.2,16.92662409]
[1755203507982,37.99126359,4545.3,4545.2,16.92662409]
[1755203508384,37.99126359,4545.3,4545.2,18.15662409]
[1755203509514,37.99096671,4545.3,4545.2,18.15662409]
[1755203509682,37.99096671,4545.3,4545.2,19.38662409]
[1755203510173,39.84153861,4545.3,4545.2,19.38662409]
[1755203510380,40.29903861,4545.3,4545.2,19.38662409]
[1755203510611,39.84153861,4545.3,4545.2,19.38662409]
[1755203510930,40.41373527,4545.3,4545.2,18.19780224]
[1755203511227,39.95623527,4545.3,4545.2,19.42780224]
[1755203511371,39.95523527,4545.3,4545.2,19.42780224]
[1755203512579,39.95523527,4545.3,4545.2,20.65780224]
[1755203512803,41.27823527,4545.3,4545.2,20.65780224]
[1755203513479,41.72633527,4545.3,4545.2,20.65780224]
[1755203513682,58.18934972,4545.3,4545.2,20.10442035]
[1755203514110,60.41369967,4545.3,4545.2,20.10442035]
[1755203514713,30.41369967,4545.3,4545.2,20.10442035]
[1755203514923,60.41369967,4545.3,4545.2,20.10442035]
[1755203515121,60.41369967,4545.3,4545.2,21.33442035]
[1755203515795,30.41369967,4545.3,4545.2,21.33442035]
[1755203516015,60.41369967,4545.3,4545.2,21.33442035]
[1755203516182,67.45369967,4545.3,4545.2,21.33442035]
[1755203516598,67.45369967,4545.3,4545.2,22.56442035]
[1755203516828,68.59603747,4545.3,4545.2,22.56442035]
[1755203517893,68.59603747,4545.3,4545.2,23.79442035]
[1755203519227,68.59603747,4545.3,4545.2,25.02442035]
[1755203519639,68.59803747,4545.3,4545.2,25.02442035]
[1755203520310,53.57638007,4545.3,4545.2,25.02442035]
[1755203520530,50.57638007,4545.3,4545.2,25.02442035]
[1755203520705,50.57638007,4545.3,4545.2,26.25442035]
[1755203520899,49.91527307,4545.3,4545.2,26.72482035]
[1755203521099,53.46527307,4545.3,4545.2,26.72482035]
[1755203521300,50.46527307,4545.3,4545.2,26.72482035]
[1755203521523,53.46527307,4545.3,4545.2,26.25442035]
[1755203521898,51.87483527,4545.3,4545.2,26.72482035]
[1755203522118,51.87483527,4545.3,4545.2,27.95482035]
[1755203523028,52.65592304,4545.3,4545.2,27.95482035]
[1755203523551,52.65592304,4545.3,4545.2,29.18482035]
[1755203523946,22.65592304,4545.3,4545.2,29.18482035]
[1755203524176,52.65592304,4545.3,4545.2,29.18482035]
[1755203524862,52.65592304,4545.3,4545.2,30.41482035]
[1755203526012,22.65592304,4545.3,4545.2,30.41482035]
[1755203526346,51.33292304,4545.3,4545.2,31.64482035]
[1755203526725,50.55183527,4545.3,4545.2,31.64482035]
[1755203527451,50.55183527,4545.3,4545.2,31.17442035]
[1755203527651,50.55183527,4545.3,4545.2,32.40442035]
[1755203528313,51.33292304,4545.3,4545.2,32.40442035]
[1755203529054,51.33330282,4545.3,4545.2,33.63442035]
[1755203530147,51.33330282,4545.3,4545.2,34.10482035]
[1755203530334,51.33330282,4545.3,4545.2,35.33482035]
[1755203531528,51.33330282,4545.3,4545.2,34.86442035]
[1755203531728,51.33330282,4545.3,4545.2,36.09442035]
[1755203532368,51.33330282,4545.3,4545.2,36.56482035]
[1755203533040,51.33330282,4545.3,4545.2,37.79482035]
[1755203533442,50.55221505,4545.3,4545.2,37.79482035]
[1755203533863,51.33520804,4545.3,4545.2,37.79482035]
[1755203534173,51.33519023,4545.3,4545.2,37.79482035]
[1755203534377,51.33519023,4545.3,4545.2,39.02482035]
[1755203534677,50.55221505,4545.3,4545.2,39.02482035]
[1755203535876,50.55221505,4545.3,4545.2,39.78442035]
[1755203537493,50.55221505,4545.3,4545.2,41.01442035]
[1755203537661,50.43751839,4545.3,4545.2,41.48482035]
[1755203538492,50.43751839,4545.3,4545.2,41.01442035]
[1755203538850,50.43751839,4545.3,4545.2,42.24442035]
[1755203539354,20.43751839,4545.3,4545.2,42.71482035]
[1755203539753,51.22027831,4545.3,4545.2,42.71482035]
[1755203540278,50.43751839,4545.3,4545.2,43.94482035]
[1755203541493,20.43751839,4545.3,4545.2,43.94482035]
[1755203541794,20.43751839,4545.3,4545.2,45.17482035]
[1755203541995,50.43751839,4545.3,4545.2,45.17482035]
[1755203543169,50.43751839,4545.3,4545.2,46.40482035]
[1755203543383,51.22060631,4545.3,4545.2,46.40482035]
[1755203544501,51.22060631,4545.3,4545.2,47.63482035]
[1755203545563,51.22060631,4545.3,4545.2,47.16442035]
[1755203545994,21.22060631,4545.3,4545.2,48.39442035]
[1755203546292,21.22060631,4545.3,4545.2,48.86372035]
[1755203546599,21.22060631,4545.3,4545.2,48.39442035]
[1755203546804,21.22060631,4545.3,4545.2,48.86372035]
[1755203546958,17.76960631,4545.3,4545.2,48.86372035]
[1755203547155,9.72226144,4545.3,4545.2,53.51053208]
[1755203547859,9.51849985,4545.3,4545.2,53.51053208]
[1755203548061,12.51849985,4545.3,4545.2,53.51053208]
[1755203548797,12.51849985,4545.3,4545.2,54.74053208]
[1755203550191,12.51849985,4545.3,4545.2,55.97053208]
[1755203550876,12.51849985,4545.3,4545.2,52.55372035]
[1755203551402,12.31473826,4545.3,4545.2,52.55372035]
[1755203551603,12.31473826,4545.3,4545.2,53.78372035]
[1755203551789,12.51868034,4545.3,4545.2,53.78372035]
[1755203552411,12.31473826,4545.3,4545.2,53.78372035]
[1755203553073,12.31473826,4545.3,4545.2,55.01372035]
[1755203553691,12.31473826,4545.3,4545.2,56.8687329]
[1755203554417,12.31473826,4545.3,4545.2,59.9049329]
[1755203554817,12.31473826,4545.3,4545.2,58.0987329]
[1755203555784,12.31473826,4545.3,4545.2,59.3287329]
[1755203556200,11.8424,4545.3,4545.2,61.1349329]
[1755203557094,11.8424,4545.3,4545.2,62.3649329]
[1755203558423,11.8424,4545.3,4545.2,60.5587329]
[1755203558634,11.8424,4545.3,4545.2,61.7887329]
[1755203559127,11.8424,4545.3,4545.2,63.5949329]
[1755203559505,8.8414,4545.3,4545.2,63.5949329]
[1755203560214,8.8414,4545.3,4545.2,64.8249329]
[1755203560990,5.3954,4545.3,4545.2,64.8249329]
[1755203561194,8.8414,4545.3,4545.2,64.8249329]
[1755203561589,8.8414,4545.3,4545.2,66.0549329]
[1755203563047,8.8414,4545.3,4545.2,67.2849329]
[1755203564445,8.8414,4545.3,4545.2,68.5149329]
[1755203565148,3.5584,4545.3,4545.2,70.7150561]
[1755203565745,3.5584,4545.3,4545.2,67.9387329]
[1755203566450,3.5584,4545.3,4545.2,70.1388561]
[1755203566645,3.5584,4545.3,4545.2,71.9450561]
[1755203567048,3.5584,4545.3,4545.2,70.9749329]
[1755203567219,3.5584,4545.3,4545.2,69.1687329]
[1755203567834,3.5584,4545.3,4545.2,73.1750561]
[1755203568212,3.5584,4545.3,4545.2,70.9749329]
[1755203568410,3.5584,4545.3,4545.2,72.2049329]
[1755203569728,3.5584,4545.3,4545.2,73.4349329]
[1755203571154,3.5584,4545.3,4545.2,72.8587329]
[1755203572118,0.1124,4545.3,4545.2,75.0588561]
[1755203572321,0.002,4545.3,4545.2,76.8317561]
[1755203572615,0.002,4545.3,4545.2,78.0617561]
[1755203574265,0.002,4545.3,4545.2,79.2917561]
[1755203575036,0.002,4545.3,4545.2,77.5188561]
[1755203575736,0.002,4545.3,4545.2,78.7488561]
[1755203577137,0.002,4545.3,4545.2,79.9788561]
[1755203577454,0.002,4545.3,4545.2,81.7517561]
[1755203577784,0.002,4545.3,4545.2,79.9788561]
[1755203577968,0.002,4545.3,4545.2,81.7517561]
[1755203578677,0.002,4545.3,4545.2,82.9817561]
[1755203580039,0.002,4545.3,4545.2,82.4388561]
[1755203581383,0.002,4545.3,4545.2,83.6688561]
[1755203582435,0.002,4545.3,4545.2,83.1995561]
[1755203582660,0.002,4545.3,4545.2,84.4295561]
[1755203583077,0.002,4545.3,4545.2,84.8772561]
[1755203583936,0.002,4545.3,4545.2,86.1072561]
[1755203585372,0.002,4545.3,4545.2,87.3372561]
[1755203586375,0.002,4545.3,4545.2,86.8895561]
[1755203586740,0.002,4545.3,4545.2,88.1195561]
[1755203587832,0.002,4545.3,4545.2,85.9194329]
[1755203588036,0.1124,4545.3,4545.2,87.1494329]
[1755203588632,0.1124,4545.3,4545.2,89.7972561]
[1755203588838,0.002,4545.3,4545.2,89.7972561]
[1755203589553,0.002,4545.3,4545.2,91.0272561]
[1755203589872,0.002,4545.3,4545.2,92.8001561]
[1755203590776,0.002,4546.1,4545.2,92.8001561]
[1755203590777,0.002,4546.1,4546.0,2.19973603]
[1755203590947,0.1116,4546.1,4545.8,2.19979303]
[1755203591153,0.1116,4546.1,4545.7,0.4477]
[1755203591465,0.1116,4546.1,4545.8,0.4477]
[1755203592182,0.1116,4546.1,4545.3,2.20446404]
[1755203592355,0.002,4546.1,4546.0,1.23]
[1755203592765,0.1116,4546.1,4546.0,3.42973603]
[1755203592966,0.1116,4546.1,4546.0,1.6777]
[1755203593166,3.5506,4546.1,4546.0,1.6777]
[1755203593479,3.5506,4546.1,4546.0,3.87743603]
[1755203593683,3.5506,4546.1,4546.0,5.26746772]
[1755203594487,0.002,4546.4,4546.2,2.19963925]
[1755203594656,0.002,4546.4,4546.2,13.14529438]
[1755203594855,0.002,4546.4,4546.2,15.36589438]
[1755203595182,0.002,4546.4,4546.2,16.59589438]
[1755203595395,0.002,4546.4,4546.2,21.78223059]
[1755203596673,0.002,4546.4,4546.2,23.01223059]
[1755203598087,0.002,4546.4,4546.2,24.24223059]
[1755203598666,0.002,4546.4,4546.2,22.46933059]
[1755203599276,0.002,4546.4,4546.2,24.24223059]
[1755203599480,0.002,4546.4,4546.2,25.47223059]
[1755203599788,0.002,4546.4,4546.2,23.69933059]
[1755203600778,0.002,4546.4,4546.2,24.92933059]
[1755203602088,0.002,4546.4,4546.2,26.67713059]
[1755203602292,0.002,4546.4,4546.2,27.90713059]
[1755203602716,0.002,4546.4,4546.2,26.15933059]
[1755203603726,0.002,4546.4,4546.2,27.38933059]
[1755203605038,0.002,4546.4,4546.2,28.61933059]
[1755203605328,0.002,4546.4,4546.2,30.36713059]
[1755203605901,0.002,4546.4,4546.2,28.61933059]
[1755203606320,0.002,4546.4,4546.2,29.84933059]
[1755203607819,0.002,4546.4,4546.2,31.07933059]
[1755203608351,1.8809,4547.8,4547.4,2.1990588]
[1755203608644,1.9905,4548.1,4547.4,5.76564938]
[1755203608951,1.9905,4548.1,4547.4,5.7436588]
[1755203609151,0.1096,4548.1,4547.4,6.2154588]
[1755203609340,3.435,4548.6,4547.4,10.4454588]
[1755203609648,3.435,4548.6,4547.4,12.64992284]
[1755203609649,1.8809,4548.5,4547.4,12.64992284]
[1755203610015,1.8809,4548.2,4547.4,12.64992284]
[1755203610209,0.002,4547.7,4547.4,12.64992284]
[1755203610630,0.002,4547.7,4547.4,13.87992284]
[1755203612146,0.002,4547.7,4547.4,15.10992284]
[1755203613430,0.002,4547.7,4547.4,16.33992284]
[1755203614634,0.1096,4548.7,4548.5,2.19851512]
[1755203614960,0.4497,4548.6,4548.1,10.83005513]
[1755203615132,1.8809,4548.5,4548.2,2.198672]
[1755203615330,2.3306,4548.5,4548.3,2.19862366]
[1755203615543,0.1096,4548.7,4548.5,2.19848645]
[1755203615741,0.1096,4548.7,4548.4,2.19856347]
[1755203616148,0.1096,4548.7,4548.6,1.23]
[1755203616859,0.5593,4548.7,4548.6,1.23]
[1755203617386,2.4402,4548.7,4548.6,1.23]
[1755203617688,2.4402,4548.7,4548.6,2.46]
[1755203618077,2.4402,4548.7,4548.6,4.65847865]
[1755203618271,2.4402,4548.7,4548.6,2.46]
[1755203618904,2.4402,4548.7,4548.6,3.69]
[1755203620203,1.9905,4548.7,4548.6,4.92]
[1755203620512,1.9905,4548.7,4548.6,7.11847865]
[1755203620813,1.9905,4548.7,4548.6,4.92]
[1755203621175,1.8809,4549.1,4548.7,2.19840683]
[1755203621380,0.1096,4548.9,4548.7,2.19840683]
[1755203621580,0.1096,4548.9,4548.6,5.63185141]
[1755203621805,1.9905,4548.9,4548.7,2.19838946]
[1755203622017,0.1096,4548.9,4548.7,1.00287625]
[1755203622213,0.1096,4549.1,4548.6,4.92]
[1755203622376,0.1096,4549.1,4549.0,2.19828533]
[1755203623017,0.1096,4549.1,4549.0,3.42828533]
[1755203623223,1.9905,4549.1,4549.0,3.42828533]
[1755203623737,1.9905,4549.1,4549.0,1.23]
[1755203624032,2.4402,4549.1,4548.6,4.92]
[1755203624230,1.8809,4549.1,4548.6,4.92]
[1755203624536,3.46861733,4549.9,4548.6,4.92]
[1755203624537,0.1096,4548.7,4548.6,4.92]
[1755203624834,1.9905,4548.7,4548.6,4.92]
[1755203625404,5.4205,4548.7,4548.6,4.92]
[1755203625627,5.5436,4548.7,4548.6,4.92]
[1755203626061,5.5436,4548.7,4548.6,6.15]
[1755203626698,8.5436,4548.7,4548.6,6.15]
[1755203626897,9.21625792,4548.7,4548.6,6.15]
[1755203627111,9.01266662,4548.7,4548.6,6.15]
[1755203627340,9.01266662,4548.7,4548.6,7.38]
[1755203629044,9.01266662,4548.7,4548.6,8.61]
[1755203630045,10.55589582,4548.7,4548.6,8.60255795]
[1755203630347,10.55589582,4548.7,4548.6,9.83255795]
[1755203630544,11.21638282,4548.7,4548.6,9.83255795]
[1755203630715,9.96977115,4548.7,4548.6,9.83255795]
[1755203631813,9.96977115,4548.7,4548.6,11.06255795]
[1755203633335,9.96977115,4548.7,4548.6,12.29255795]
[1755203633829,8.88956662,4548.7,4548.6,12.29255795]
[1755203634225,47.56985897,4548.7,4548.6,12.29069743]
[1755203634426,48.86392083,4548.7,4548.6,8.49829743]
[1755203634627,47.6919373,4548.7,4548.6,9.02049743]
[1755203635264,47.6919373,4548.7,4548.6,7.83258955]
[1755203635550,49.0129373,4548.7,4548.6,7.83358955]
[1755203635752,49.0129373,4548.7,4548.6,6.05158476]
[1755203635753,49.36938584,4548.7,4548.6,6.05158476]
[1755203636131,49.36938584,4548.7,4548.6,7.28158476]
[1755203636468,1.871,4548.4,4548.1,0.001]
[1755203636801,12.11749898,4548.2,4548.1,0.001]
[1755203636956,43.11495933,4548.2,4548.1,0.001]
[1755203637158,43.55075933,4548.2,4548.1,0.001]
[1755203637380,42.38031548,4548.2,4548.1,0.001]
[1755203637547,42.38031548,4548.2,4548.1,1.231]
[1755203637734,34.98326035,4548.2,4548.1,1.231]
[1755203637935,42.38031548,4548.2,4548.1,1.231]
[1755203638694,43.55075933,4548.2,4548.1,1.231]
[1755203638893,43.55075933,4548.2,4548.1,2.461]
[1755203639390,50.59075933,4548.2,4548.1,2.461]
[1755203640357,49.42031548,4548.2,4548.1,3.691]
[1755203640591,49.42031548,4548.2,4547.4,6.15]
[1755203640592,52.57244633,4548.2,4547.4,6.15]
[1755203640803,0.55,4547.4,4546.4,0.001]
[1755203640968,10.94705513,4546.5,4546.4,0.001]
[1755203641301,37.85345272,4546.5,4546.4,0.001]
[1755203641457,39.06639853,4546.5,4546.4,0.001]
[1755203641778,38.28925272,4546.5,4546.4,1.231]
[1755203642494,38.87174673,4546.5,4546.4,1.231]
[1755203642969,38.43594673,4546.5,4546.4,2.461]
[1755203643176,38.87174673,4546.5,4546.4,2.461]
[1755203643378,38.28925272,4546.5,4546.4,2.461]
[1755203644322,38.3977436,4546.5,4546.4,2.461]
[1755203644457,37.9619436,4546.5,4546.4,3.691]
[1755203644662,37.9619436,4546.5,4546.2,12.3]
[1755203644663,3.55,4546.4,4546.2,6.86166203]
[1755203644903,7.38327698,4546.3,4546.2,6.86166203]
[1755203645063,38.2881436,4546.3,4546.2,6.39060917]
[1755203645398,39.06347158,4546.3,4546.2,6.12925851]
[1755203645799,38.2881436,4546.3,4546.2,5.98939541]
[1755203646003,45.3281436,4546.3,4546.2,7.21939541]
[1755203646360,46.10326526,4546.3,4546.2,7.21939541]
[1755203646899,45.32426125,4546.3,4546.2,7.21939541]
[1755203647125,45.90575415,4546.3,4546.2,7.21939541]
[1755203647300,45.90575415,4546.3,4546.2,8.44939541]
[1755203648303,45.32426125,4546.3,4546.2,8.44939541]
[1755203648506,45.90555153,4546.3,4546.2,8.44939541]
[1755203648684,45.90555153,4546.3,4546.2,9.67939541]
[1755203648998,45.32426125,4546.3,4546.2,9.67939541]
[1755203649410,45.70341304,4546.3,4546.2,9.67939541]
[1755203649572,45.12212276,4546.3,4546.2,9.67939541]
[1755203650206,44.68632276,4546.3,4546.2,10.90939541]
[1755203650588,45.12212276,4546.3,4546.2,10.90939541]
[1755203651081,44.68632276,4546.3,4546.2,10.90939541]
[1755203651611,44.68632276,4546.3,4546.2,14.01919541]
[1755203651612,45.14512527,4546.3,4546.2,14.01919541]
[1755203653815,45.34718285,4546.3,4546.2,15.24919541]
[1755203654319,45.34718285,4546.3,4546.2,16.47919541]
[1755203654722,45.45678285,4546.3,4546.2,14.59939541]
[1755203655190,45.45678285,4546.3,4546.2,16.47919541]
[1755203655716,45.45678285,4546.3,4546.2,17.70919541]
[1755203656022,37.00378427,4546.3,4546.2,18.15689541]
[1755203656314,37.2060725,4546.3,4546.2,18.15689541]
[1755203656879,37.55378427,4546.3,4546.2,18.15689541]
[1755203657120,37.75594235,4546.3,4546.2,19.38689541]
[1755203657883,37.75594235,4546.3,4546.2,17.05939541]
[1755203658281,39.73780935,4546.3,4546.2,17.05939541]
[1755203658636,47.89912744,4546.3,4546.2,18.28939541]
[1755203659128,39.94398967,4546.3,4546.2,18.28939541]
[1755203659433,41.10835419,4546.3,4546.2,18.28939541]
[1755203659732,41.54415419,4546.3,4546.2,19.51939541]
[1755203660095,41.10835419,4546.3,4546.2,19.51939541]
[1755203661246,41.10835419,4546.3,4546.2,20.74939541]
[1755203661401,41.11012294,4546.3,4546.2,20.74939541]
[1755203661602,38.62298967,4546.3,4546.2,22.50019541]
[1755203661913,38.30648172,4546.3,4546.2,22.94049541]
[1755203662115,35.08106697,4546.3,4546.2,22.94049541]
[1755203662441,34.09561472,4546.3,4546.2,22.94049541]
[1755203662604,34.09561472,4546.3,4546.2,24.17049541]
[1755203662932,37.64561472,4546.3,4546.2,24.17049541]
[1755203663919,37.64561472,4546.3,4546.2,25.40049541]
[1755203664136,37.8487291,4546.3,4546.2,24.96019541]
[1755203664738,37.8487291,4546.3,4546.2,25.40049541]
[1755203665328,37.8487291,4546.3,4546.2,26.63049541]
[1755203666843,37.8487291,4546.3,4546.2,27.86049541]
[1755203667261,39.01486237,4546.3,4546.2,27.86049541]
[1755203668222,39.67570337,4546.3,4546.2,29.09049541]
[1755203668423,39.79161042,4546.3,4546.2,29.09049541]
[1755203668961,47.18866555,4546.3,4546.2,26.89939541]
[1755203669168,46.60495124,4546.3,4546.2,21.55110903]
[1755203669368,46.60495124,4546.3,4546.2,22.63803216]
[1755203669369,55.0806093,4546.3,4546.2,22.63803216]
[1755203669527,55.2418093,4546.3,4546.2,22.63803216]
[1755203670629,25.2418469,4546.3,4546.2,22.63803216]
[1755203670839,55.2418469,4546.3,4546.2,23.86803216]
[1755203671774,55.50862215,4546.3,4546.2,23.86803216]
[1755203672322,55.50862215,4546.3,4546.2,25.09803216]
[1755203672532,55.0806469,4546.3,4546.2,25.09803216]
[1755203672832,47.68359177,4546.3,4546.2,25.09803216]
[1755203673053,47.48476702,4546.3,4546.2,25.09803216]
[1755203673359,47.21799177,4546.3,4546.2,25.09803216]
[1755203673665,47.21916808,4546.3,4546.2,25.09803216]
[1755203673866,46.75398381,4546.3,4546.2,26.32803216]
[1755203674165,47.22311361,4546.3,4546.2,26.32803216]
[1755203674520,46.75398381,4546.3,4546.2,26.32803216]
[1755203674805,46.75448319,4546.3,4546.2,26.32803216]
[1755203675104,47.22360438,4546.3,4546.2,26.32803216]
[1755203675406,47.22360438,4546.3,4546.2,25.18081692]
[1755203676104,47.22362729,4546.3,4546.2,25.18081692]
[1755203676598,47.22364676,4546.3,4546.2,26.41081692]
[1755203677778,46.75450266,4546.3,4546.2,26.41081692]
[1755203677973,46.75450266,4546.3,4546.2,27.64081692]
[1755203678735,48.78768651,4546.3,4546.2,27.64081692]
[1755203678893,48.78768651,4546.3,4546.2,29.39161692]
[1755203679228,47.22368649,4546.3,4546.2,28.83873813]
[1755203679393,47.22368649,4546.3,4546.2,27.08793813]
[1755203680732,47.22368649,4546.3,4546.2,28.31793813]
[1755203681099,38.92568649,4546.3,4546.2,30.50903813]
[1755203681312,42.35168649,4546.3,4546.2,30.50903813]
[1755203681495,42.23702843,4546.3,4546.2,30.50903813]
[1755203681697,45.78702843,4546.3,4546.2,30.50903813]
[1755203682096,45.78702843,4546.3,4546.2,31.73903813]
[1755203682527,45.78718108,4546.3,4546.2,31.73903813]
[1755203683737,45.78718108,4546.3,4546.2,32.96903813]
[1755203684299,45.25762483,4546.3,4546.2,32.96903813]
[1755203685134,45.25762483,4546.3,4546.2,34.19903813]
[1755203686423,45.25762483,4546.3,4546.2,35.42903813]
[1755203686719,44.70762483,4546.3,4546.2,35.42903813]
[1755203686930,14.59678383,4546.3,4546.2,35.42903813]
[1755203687124,14.04678383,4546.3,4546.2,35.42903813]
[1755203687524,15.12746691,4546.3,4546.2,35.42903813]
[1755203687723,15.12746691,4546.3,4546.2,36.65903813]
[1755203688099,15.00500147,4546.3,4546.2,36.65903813]
[1755203688395,14.80089265,4546.3,4546.2,36.65903813]
[1755203688600,15.00499986,4546.3,4546.2,36.65903813]
[1755203689134,15.00499986,4546.3,4546.2,37.88903813]
[1755203690436,15.00499986,4546.3,4546.2,39.11903813]
[1755203691617,15.00502837,4546.3,4546.2,39.11903813]
[1755203691817,15.00502837,4546.3,4546.2,40.34903813]
[1755203692253,7.96502837,4546.3,4546.2,41.39575968]
[1755203692453,4.41502837,4546.3,4546.2,41.39575968]
[1755203692597,3.5376,4546.3,4546.2,41.39575968]
[1755203693268,3.5376,4546.3,4546.2,42.62575968]
[1755203694571,3.5376,4546.3,4546.2,43.85575968]
[1755203695843,3.5376,4546.3,4546.2,45.08575968]
[1755203697240,3.5376,4546.3,4546.2,46.31575968]
[1755203698672,3.5376,4546.3,4546.2,47.54575968]
[1755203700189,3.428,4546.3,4546.2,50.97539893]
[1755203700531,3.428,4546.3,4546.2,48.77575968]
[1755203701465,3.428,4546.3,4546.2,50.00575968]
[1755203702767,3.428,4546.3,4546.2,51.23575968]
[1755203704184,3.428,4546.3,4546.2,52.46575968]
[1755203705437,3.428,4546.3,4546.2,53.69575968]
[1755203705634,3.428,4546.3,4546.2,53.71405968]
[1755203707350,3.428,4546.3,4546.2,54.94405968]
[1755203708743,3.428,4546.3,4546.2,56.17405968]
[1755203709787,0.002,4546.3,4546.2,56.17405968]
[1755203709937,3.422,4546.3,4546.2,56.17405968]
[1755203710136,3.422,4546.3,4546.2,56.35733813]
[1755203711438,3.422,4546.3,4546.2,57.58733813]
[1755203711874,3.422,4546.3,4546.2,55.37793813]
[1755203712174,6.422,4546.3,4546.2,55.37793813]
[1755203712974,6.422,4546.3,4546.2,56.60793813]
[1755203713363,6.972,4546.3,4546.2,56.60793813]
[1755203713686,7.4032,4546.3,4546.2,56.60793813]
[1755203714291,7.44308337,4546.3,4546.2,57.83793813]
[1755203714797,7.44208337,4546.3,4546.2,57.83793813]
[1755203715000,7.64664988,4546.3,4546.2,57.83793813]
[1755203715462,7.99253253,4546.3,4546.2,59.06793813]
[1755203715842,38.42950778,4546.3,4546.2,59.06793813]
[1755203716065,38.86337857,4546.3,4546.2,59.06793813]
[1755203716588,38.27530778,4546.3,4546.2,59.06793813]
[1755203716881,38.42950778,4546.3,4546.2,60.29793813]
[1755203718412,38.55210525,4546.3,4546.2,51.16860016]
[1755203718536,40.26013104,4546.3,4546.2,46.56641095]
[1755203718740,41.82413106,4546.3,4546.2,46.42332863]
[1755203719141,41.82413106,4546.3,4546.2,46.20869369]
[1755203719142,40.26013104,4546.3,4546.2,46.20869369]
[1755203719342,41.82763368,4546.3,4546.2,34.21868608]
[1755203719695,42.0037395,4546.3,4546.2,34.21868608]
[1755203719842,42.0037395,4546.3,4546.2,35.44868608]
[1755203720444,42.0037395,4546.3,4546.2,26.31934811]
[1755203720986,41.8495395,4546.3,4546.2,19.76163715]
[1755203721162,42.0037395,4546.3,4546.2,18.13096751]
[1755203721363,42.0037395,4546.3,4546.2,9.00162954]
[1755203722171,42.0037395,4546.3,4546.2,6.1409599]
[1755203722366,1.321,4546.1,4545.7,0.001]
[1755203722658,12.77559224,4545.8,4545.7,0.001]
[1755203722853,0.55,4545.6,4545.3,0.00520263]
[1755203723188,4.24643913,4545.4,4545.3,0.00520263]
[1755203723392,35.12657166,4545.4,4545.3,0.00520263]